[Event "1st FIDE Olympiad DIS 2023"]
[Site "Belgrade"]
[Date "2023.02.02"]
[Round "4.12"]
[White "Batista Rivera, Idalis"]
[Black "Sarkar, Ali Newaz"]
[Result "1/2-1/2"]
[ECO "B30"]
[WhiteElo "1775"]
[BlackElo "1809"]
[Annotator "NA RC COMBH"]
[PlyCount "93"]
[EventDate "2023.01.30"]
[EventType "team-tourn"]
[EventCountry "SRB"]
[SourceTitle "playchess.com"]
[Source "ChessBase"]
[SourceQuality "1"]
[WhiteTeam "Cuba"]
[BlackTeam "Bangladesh"]
[WhiteTeamCountry "CUB"]
[BlackTeamCountry "BAN"]
[TimeControl "40/5400+30:1800+30"]

1. e4 {[%emt 0:00:04]} c5 {[%emt 0:01:53]} 2. Nf3 {[%emt 0:00:10]} Nc6 {[%emt 0:00:28]} 3. Bb5 {[%emt 0:00:12]} Nd4 {[%emt 0:01:05]} 4. Nxd4 {[%emt 0:04:09]} cxd4 {[%emt 0:00:14]} 5. Bc4 {[%emt 0:01:00]} e5 {[%emt 0:02:32]} 6. Qh5 {[%emt 0:01:39]} Qe7 {[%emt 0:02:33]} 7. d3 {[%emt 0:03:25]} Nf6 $14 {[%emt 0:00:39]} 8. Qf3 {[%emt 0:02:59]} h6 {[%emt 0:00:27]} 9. c3 {[%emt 0:09:30]} dxc3 {[%emt 0:01:56]} 10. Nxc3 {[%emt 0:01:22]} a6 {[%emt 0:00:08]} 11. Bd2 {[%emt 0:01:54]} d6 {[%emt 0:00:30]} 12. h3 {[%emt 0:05:01]} Be6 {[%emt 0:00:13]} 13. Bxe6 {[%emt 0:01:21]} Qxe6 {[%emt 0:00:29]} 14. Qe3 {[%emt 0:04:10]} Be7 {[%emt 0:00:49]} 15. Qb6 {[%emt 0:03:08]} Qd7 {[%emt 0:00:38]} 16. Rc1 {[%emt 0:04:35]} Rc8 {[%emt 0:00:27]} 17. O-O {[%emt 0:02:10]} O-O {[%emt 0:00:09]} 18. Be3 {[%emt 0:02:33]} Rc6 {[%emt 0:01:33]} 19. Qb3 {[%emt 0:01:27]} Rfc8 {[%emt 0:01:11]} 20. a3 {[%emt 0:06:53]} b5 {[%emt 0:00:55]} 21. Rfd1 {[%emt 0:06:24]} Qb7 {[%emt 0:02:59]} 22. Nd5 {[%emt 0:04:23]} Nxd5 {[%emt 0:01:30]} 23. Qxd5 {[%emt 0:03:22]} Qd7 {[%emt 0:00:16] [#]} 24. Rxc6 {[%emt 0:03:35]} (24. Rc2 $2 {[%emt 0:03:35][%mdl 8192]}) 24... Rxc6 {[%emt 0:00:36]} 25. Bd2 {[%emt 0:01:40]} Rc5 {[%emt 0:01:22]} 26. Qa8+ {[%emt 0:01:11]} Qc8 {[%emt 0:00:41]} 27. Qxc8+ {[%emt 0:00:36]} Rxc8 {[%emt 0:00:14]} 28. Bc3 {[%emt 0:00:14]} f6 {[%emt 0:01:09]} 29. d4 {[%emt 0:05:24]} Kf7 {[%emt 0:04:26]} 30. dxe5 {[%emt 0:01:25]} dxe5 {[%emt 0:00:50]} 31. Rd3 {[%emt 0:02:20]} Ke6 {[%emt 0:00:34]} 32. Kf1 {[%emt 0:00:38]} Bc5 {[%emt 0:01:09]} 33. Ke2 {[%emt 0:01:25]} Bb6 {[%emt 0:01:27]} 34. Rd5 {[%emt 0:01:54]} Rd8 {[%emt 0:01:02]} 35. Rxd8 {[%emt 0:00:50]} Bxd8 {[%emt 0:00:11]} 36. f3 {[%emt 0:01:39]} Bb6 {[%emt 0:00:47]} 37. Kd3 {[%emt 0:04:19]} g6 {[%emt 0:00:30]} 38. Bd2 {[%emt 0:01:40]} h5 {[%emt 0:01:29]} 39. g4 {[%emt 0:05:06]} Bd4 {[%emt 0:00:33]} 40. b3 {[%emt 0:01:12]} Bc5 {[%emt 0:00:26]} 41. a4 {[%emt 0:30:51]} Kd6 {[%emt 0:31:07]} 42. gxh5 {[%emt 0:01:23]} gxh5 {[%emt 0:00:18]} 43. Be1 {[%emt 0:01:30]} Kc6 {[%emt 0:02:28]} 44. Bh4 {[%emt 0:00:00]} Be7 {[%emt 0:00:00]} 45. Bf2 {[%emt 0:00:00]} Bd6 {[%emt 0:00:00]} 46. Kc3 {[%emt 0:00:00]} Be7 {[%emt 0:00:00]} 47. Kd3 {[%emt 0:00:00]} 1/2-1/2

[Event "1st FIDE Olympiad DIS 2023"]
[Site "Belgrade"]
[Date "2023.02.02"]
[Round "4.13"]
[White "Mikheev, Stanislav"]
[Black "Bjelanovic, Mile"]
[Result "1/2-1/2"]
[ECO "A54"]
[WhiteElo "2300"]
[BlackElo "2021"]
[Annotator "TA"]
[PlyCount "120"]
[EventDate "2023.01.30"]
[EventType "team-tourn"]
[EventCountry "SRB"]
[SourceTitle "playchess.com"]
[Source "ChessBase"]
[SourceQuality "1"]
[WhiteTeam "Serbia"]
[BlackTeam "Serbia"]
[WhiteTeamCountry "SRB"]
[BlackTeamCountry "SRB"]
[TimeControl "40/5400+30:1800+30"]

{[%evp 9,120,22,38,23,37,37,61,39,50,14,24,6,39,4,4,0,0,2,49,48,56,52,52,48,132,33,32,40,44,31,58,29,129,73,110,114,114,93,111,74,70,63,147,133,141,103,102,66,99,26,22,6,36,-16,-16,-99,106,-309,-314,-316,-312,-417,-314,-416,-411,-358,-368,-795,-794,-793,-773,-758,-758,-1208,-1193,-2185,-1712,-1654,-916,-901,-887,-29962,-29963,-29961,-29966,-29964,-29967,-29968,-29968,-29967,-29946,-29950,-11719,-29958,-29956,-2127,-18,-18,-18,-14,0,0,0,0,0,0,8,8,8,8,8,8,8]} 1. d4 {[%emt 0:00:05] ChessBase II} Nf6 {[%emt 0:00:14]} 2. c4 {[%emt 0:00:41]} d6 {[%emt 0:00:10]} 3. Nf3 {[%emt 0:00:31]} Nbd7 {[%emt 0:00:16]} 4. Nc3 {[%emt 0:00:27]} e5 {[%emt 0:00:20]} 5. Bg5 {[%emt 0:00:34]} h6 {[%emt 0:01:00]} 6. Bh4 {[%emt 0:00:23] A54: Old Indian Defence with Nf3, but without e4.} exd4 {[%emt 0:01:15]} 7. Nxd4 {[%emt 0:00:23]} g6 {[%emt 0:00:21]} 8. Qd2 {[%emt 0:08:55] White is slightly better.} Bg7 {[%emt 0:02:21]} 9. O-O-O {[%emt 0:08:40]} O-O {[%emt 0:02:18] [#]} 10. e4 $146 {[%emt 0:02:02]} ({Predecessor:} 10. Qc2 c6 11. e4 Qb6 12. f3 Nc5 13. Bf2 a5 14. g4 a4 15. h4 Nfd7 16. f4 {½-½ Krogius,N-Nezhmetdinov,R RSFSR-ch18 Sochi 1958}) 10... Re8 {[%emt 0:12:02]} 11. f3 {[%emt 0:06:18]} Nxe4 {[%emt 0:19:28][%mdl 64] [#] Discovered Attack} 12. Bxd8 {[%emt 0:01:02]} Nxd2 {[%emt 0:00:19]} 13. Bxc7 {[%emt 0:00:37]} Nxf1 {[%emt 0:00:17]} (13... Bxd4 $11 14. Kxd2 Nc5) 14. Rhxf1 $14 {[%emt 0:00:12]} Ne5 $1 {[%emt 0:00:31]} 15. b3 {[%emt 0:01:25]} Nc6 {[%emt 0:04:49]} 16. Ndb5 {[%emt 0:05:04]} Re3 {[%emt 0:12:02]} (16... Bf5 $14) 17. Nd5 {[%emt 0:04:54]} (17. Kd2 $16 Re6 18. Nd5 (18. Nxd6 Be5 $11) (18. Bxd6 $2 a6 $19 {[%mdl 64] Deflection})) 17... Re2 {[%emt 0:00:47][%csl LRa2,LRg2]} 18. Rd2 $36 {[%emt 0:00:23][%mdl 2048] Inhibits Bb2+. White has some pressure.} (18. Bxd6 $2 {is a self mate.} Bb2+ 19. Kb1 Bf5+) ({Of course not} 18. Nxd6 Rxa2 19. Ne8 Bd4 20. Nef6+ Kh8 $17) 18... Rxd2 {[%emt 0:01:46]} 19. Kxd2 {[%emt 0:00:04]} Be6 $1 {[%emt 0:05:21]} 20. Nxd6 {[%emt 0:05:17]} b6 {[%emt 0:02:25]} (20... Bxd5 $1 $11 {keeps the balance.} 21. cxd5 Ne7 22. Nxb7 Nxd5) 21. Nf4 {[%emt 0:06:46]} (21. Nb5 $142) 21... Bd7 {[%emt 0:01:08]} 22. Re1 {[%emt 0:10:52]} Bf8 {[%emt 0:02:55] Black is weak on the light squares} 23. a3 {[%emt 0:06:37]} h5 {[%emt 0:01:41]} 24. b4 {[%emt 0:07:30] White has more active pieces.} Bh6 {[%emt 0:02:24]} 25. Ne4 {[%emt 0:00:39] [#] And now b5 would win.} Bf5 {[%emt 0:00:44]} ({Better is} 25... Rc8 $14 26. Bd6 Rd8) 26. Nf6+ $16 {[%emt 0:01:55]} Kg7 {[%emt 0:01:33]} 27. N6d5 {[%emt 0:01:43]} Rc8 {[%emt 0:01:00][%cal Oc8c7] ...Rxc7! would be deadly.} 28. g3 {[%emt 0:00:42]} Kh7 {[%emt 0:07:13]} 29. Kd1 {[%emt 0:09:36]} (29. Re8 $16) 29... Bg7 $11 {[%emt 0:05:35]} 30. h3 {[%emt 0:01:57]} Nd4 {[%emt 0:01:05]} (30... Bb1 $5 {[%cal Rb1a2]}) 31. g4 {[%emt 0:01:45]} (31. Re7 $14) 31... Be6 {[%emt 0:01:06] A strong pair of Bishops.} 32. g5 {[%emt 0:04:02]} (32. Re4 $11) 32... Nxf3 $2 {[%emt 0:01:36]} (32... Bxd5 $17 {stays on course.} 33. Nxd5 Ne6) 33. Rxe6 $4 {[%emt 0:00:25][%mdl 8192]} (33. Nxe6 $16 fxe6 34. Rxe6) 33... fxe6 $19 {[%emt 0:00:54]} 34. Nxe6 {[%emt 0:00:02]} Be5 {[%emt 0:02:54]} 35. c5 {[%emt 0:02:14]} bxc5 {[%emt 0:00:45] Strongly threatening ...Bxc7.} 36. bxc5 {[%emt 0:00:01]} Bxc7 {[%emt 0:00:24]} 37. Ndxc7 {[%emt 0:00:02][%mdl 4096] Endgame KRN-KNN} Kg8 {[%emt 0:00:38]} 38. c6 $2 {[%emt 0:01:07]} (38. Ke2 Ng1+ 39. Kf1 Nxh3 40. Nb5) 38... Kf7 {[%emt 0:02:04]} 39. Ke2 {[%emt 0:01:24]} Ne5 {[%emt 0:01:24]} 40. Ke3 {[%emt 0:00:21]} Nxc6 {[%emt 0:00:15] White must now prevent ...Nd8.} 41. Ke4 {[%emt 0:30:11]} Nd8 {[%emt 0:31:41]} 42. Nxd8+ {[%emt 0:01:50]} Rxd8 {[%emt 0:00:07] KR-KN} 43. Nb5 {[%emt 0:00:10]} Re8+ {[%emt 0:00:53]} 44. Kf4 {[%emt 0:00:30]} Rb8 {[%emt 0:02:19]} 45. Nxa7 {[%emt 0:00:20]} Ra8 {[%emt 0:00:38]} 46. Nb5 {[%emt 0:00:53]} Ra5 {[%emt 0:00:14]} 47. Nd4 {[%emt 0:01:41]} Rxa3 {[%emt 0:01:37]} 48. Nf3 {[%emt 0:00:20]} Ke6 {[%emt 0:00:56]} 49. Nh4 {[%emt 0:00:00]} Ra4+ {[%emt 0:00:00]} 50. Kg3 {[%emt 0:00:00]} Kf7 {[%emt 0:00:00]} 51. Ng2 {[%emt 0:00:00]} Ra3+ {[%emt 0:00:00]} 52. Kh4 {[%emt 0:00:00]} Ke6 $2 {[%emt 0:00:00]} (52... Rf3 $19 {( -> ...Ke6)} 53. Ne1 Ra3) 53. Nf4+ $11 {[%emt 0:00:00] The position is equal.} Kf5 {[%emt 0:00:00]} 54. Nxg6 $1 {[%emt 0:00:00]} Ra4+ {[%emt 0:00:00]} (54... Ra7 55. Nf8 Rf7 56. Ne6 Kxe6 57. Kxh5 Rf4 58. g6 Kf6 59. g7 Kxg7 60. Kg5 Rf7 61. Kh4 Kh6 62. Kg4 Kg6 63. Kh4 Kf5 64. Kg3 Kg5 65. Kh2 Kh4 66. Kg2 Rf5 67. Kh2 Rf2+ 68. Kg1 Kg3 69. h4 Rf5 70. h5 Rxh5 71. Kf1 Re5 72. Kg1 Re1#) 55. Kxh5 {[%emt 0:00:00]} Ra7 {[%emt 0:00:00][%cal Ra7h7]} 56. Nh4+ {[%emt 0:00:00]} Kf4 {[%emt 0:00:00]} 57. g6 {[%emt 0:00:00]} Kg3 {[%emt 0:00:00]} 58. Kg5 {[%emt 0:00:00]} Kxh3 {[%emt 0:00:00]} 59. Nf5 {[%emt 0:00:00]} Ra1 {[%emt 0:00:00]} 60. g7 {[%emt 0:00:00]} Rg1+ {[%emt 0:00:00] Black had all chances to win.   Weighted Error Value: White=0.73/Black=0.35} 1/2-1/2

[Event "1st FIDE Olympiad DIS 2023"]
[Site "Belgrade"]
[Date "2023.02.02"]
[Round "4.13"]
[White "Gora, Tapiwa"]
[Black "Soltanov, Serik"]
[Result "1/2-1/2"]
[ECO "B03"]
[WhiteElo "1959"]
[BlackElo "2266"]
[Annotator "TA"]
[PlyCount "51"]
[EventDate "2023.01.30"]
[EventType "team-tourn"]
[EventCountry "SRB"]
[SourceTitle "playchess.com"]
[Source "ChessBase"]
[SourceQuality "1"]
[WhiteTeam "Zimbabwe"]
[BlackTeam "Kazakhstan"]
[WhiteTeamCountry "ZIM"]
[BlackTeamCountry "KAZ"]
[TimeControl "40/5400+30:1800+30"]

{[%evp 26,38,27,16,27,13,42,47,50,37,37,29,27,8,20]} 1. e4 {[%emt 0:00:10][%cal Be2e4,Be4e5][%mdl 32]} Nf6 {[%emt 0:00:13]} 2. e5 {[%emt 0:00:09]} Nd5 {[%emt 0:00:08]} 3. c4 {[%emt 0:00:08]} Nb6 {[%emt 0:00:06]} 4. d4 {[%emt 0:00:09]} d6 {[%emt 0:00:06]} 5. exd6 {[%emt 0:00:03]} cxd6 {[%emt 0:00:12]} 6. Nc3 {[%emt 0:00:51]} g6 {[%emt 0:00:07]} 7. Be3 {[%emt 0:00:09]} Bg7 {[%emt 0:00:11]} 8. Rc1 {[%emt 0:00:09]} O-O {[%emt 0:00:16]} 9. b3 {[%emt 0:00:13]} e5 {[%emt 0:00:12]} 10. dxe5 {[%emt 0:01:25]} dxe5 {[%emt 0:00:06]} 11. Qxd8 {[%emt 0:00:10]} Rxd8 {[%emt 0:00:07]} 12. c5 {[%emt 0:00:08]} N6d7 {[%emt 0:00:07]} 13. Bc4 {[%emt 0:03:24]} Nc6 {[%emt 0:00:17]} 14. Nf3 {[%emt 0:00:56]} h6 {[%emt 0:00:10] Prevents Ng5. B03: Alekhine's Defence: Four Pawns Attack.} 15. Nb5 {[%emt 0:01:48] Threatening Nd6.} (15. Ne4 $5 {[%cal Re4d6]}) 15... Nf8 {[%emt 0:08:00]} 16. Nd6 {[%emt 0:03:41]} Rd7 {[%emt 0:00:26]} 17. O-O {[%emt 0:05:48]} Re7 {[%emt 0:05:23]} 18. Nxc8 {[%emt 0:07:58]} Rxc8 {[%emt 0:00:19]} 19. a3 {[%emt 0:00:07]} e4 {[%emt 0:12:05] [#] Black did not feel at home in the position after the opening.   Weighted Error Value: White=0.11 (very precise) /Black=0.06 (flawless)} {Predecessor:} 20. Ne1 $146 Bb2 21. Rb1 Bxa3 22. Nc2 Bb4 23. Nxb4 Nxb4 24. Bxh6 Rxc5 25. Bf4 Rc6 26. Rfd1 {½-½ Domont,A (2345)-Hugentobler,P (2253) SUI-ch Graechen 2009 (9)} 1/2-1/2

[Event "1st FIDE Olympiad DIS 2023"]
[Site "Belgrade"]
[Date "2023.02.02"]
[Round "4.14"]
[White "Mitrovic, Stefan"]
[Black "Sargissyan, Sargis"]
[Result "1/2-1/2"]
[ECO "A50"]
[WhiteElo "1807"]
[BlackElo "2221"]
[Annotator "TA"]
[PlyCount "121"]
[EventDate "2023.01.30"]
[EventType "team-tourn"]
[EventCountry "SRB"]
[SourceTitle "playchess.com"]
[Source "ChessBase"]
[SourceQuality "1"]
[WhiteTeam "Serbia"]
[BlackTeam "Armenia"]
[WhiteTeamCountry "SRB"]
[BlackTeamCountry "ARM"]
[TimeControl "40/5400+30:1800+30"]

{[%evp 14,121,21,0,-3,0,0,-7,-8,-10,-9,-8,-19,-15,-17,-17,-17,-19,-10,-9,-8,-25,-12,-20,-21,-21,0,0,7,-31,-7,-41,-41,-41,-41,-56,-41,-57,-57,-74,-76,-81,-79,-151,-155,-138,-150,-406,-416,-385,-355,-392,-380,-435,-416,-695,-641,-736,-752,-674,-567,-1324,-1284,-1259,-1177,-674,0,0,0,0,0,0,0,0,0,0,0,0,0,0,0,0,0,0,0,-5,-5,-40,-60,-78,-81,-85,0,0,0,0,0,0,0,0,0,0,0,0,0,0,0,0,0,0]} 1. d4 {[%emt 0:00:05]} Nf6 {[%emt 0:00:07]} 2. c4 {[%emt 0:00:12]} g6 {[%emt 0:00:15]} 3. Nf3 {[%emt 0:00:11]} Bg7 {[%emt 0:00:22]} 4. g3 {[%emt 0:00:19]} b6 {[%emt 0:02:30]} 5. Bg2 {[%emt 0:01:25]} Bb7 {[%emt 0:00:05]} 6. Nc3 {[%emt 0:01:59]} O-O {[%emt 0:00:09]} 7. O-O {[%emt 0:03:07]} Ne4 {[%emt 0:02:15]} 8. Qc2 {[%emt 0:02:22]} Nxc3 {[%emt 0:00:48] A50: Queen's Fianchetto Defence (1 d4 Nf6 2 c4 b6).} 9. Qxc3 {[%emt 0:13:09]} c5 {[%emt 0:21:25]} 10. Be3 {[%emt 0:05:43]} Bxf3 {[%emt 0:16:47]} 11. Bxf3 {[%emt 0:01:20]} ({Much weaker is} 11. exf3 Nc6 12. Qa3 Nxd4 $17) 11... Nc6 {[%emt 0:00:11]} 12. Bxc6 {[%emt 0:09:08]} dxc6 {[%emt 0:00:14]} 13. Rfd1 {[%emt 0:00:25]} Qd7 {[%emt 0:02:24] [#] Threatening ...Rfd8.} 14. Qd3 $146 {[%emt 0:04:10]} ({Predecessor:} 14. Rd3 Rfd8 15. Rad1 Qg4 16. R1d2 Rd7 17. f3 Qe6 18. Qc2 cxd4 19. Bf2 Rad8 20. c5 {1-0 Shnayder,V (1917)-Nikulina,A (1604) Satka Autumn op (Women) 2020 (8)}) 14... cxd4 {[%emt 0:02:33]} 15. Bxd4 {[%emt 0:00:41]} Rfd8 {[%emt 0:00:53]} 16. Bxg7 {[%emt 0:00:44]} Qxd3 {[%emt 0:00:05]} 17. Rxd3 {[%emt 0:00:15]} Rxd3 {[%emt 0:00:06]} 18. exd3 {[%emt 0:00:07] And now Bc3 would win.} Kxg7 $11 {[%emt 0:00:05][%mdl 4096] Endgame KR-KR} 19. Kf1 {[%emt 0:00:22]} Rd8 {[%emt 0:04:14]} 20. Ke2 {[%emt 0:00:36]} e5 {[%emt 0:03:00]} 21. f3 {[%emt 0:06:39]} f5 {[%emt 0:12:09]} 22. a4 {[%emt 0:09:01]} a5 {[%emt 0:02:18]} 23. Rc1 {[%emt 0:02:10]} c5 {[%emt 0:02:02]} 24. Rc3 {[%emt 0:03:09]} Kf6 {[%emt 0:00:36]} 25. Ke3 {[%emt 0:03:04]} Rd6 {[%emt 0:06:12]} 26. h3 {[%emt 0:06:21]} Kg5 {[%emt 0:03:04]} 27. Rb3 {[%emt 0:11:48]} Re6 {[%emt 0:00:53]} 28. h4+ {[%emt 0:02:34] [#]} (28. Ra3 $142) 28... Kh5 $1 $17 {[%emt 0:03:09][%cal Of5f4]} 29. Kf2 {[%emt 0:00:48]} f4 {[%emt 0:02:38]} 30. Kg2 {[%emt 0:00:38]} (30. Rc3 $17) 30... fxg3 $19 {[%emt 0:00:23]} 31. Kxg3 {[%emt 0:00:15]} g5 {[%emt 0:00:21]} 32. hxg5 {[%emt 0:01:03]} Kxg5 {[%emt 0:00:07]} 33. Rb5 {[%emt 0:03:08]} Rc6 {[%emt 0:04:33]} 34. b4 {[%emt 0:08:33]} (34. Rb3 $142 h5 35. Kg2) 34... axb4 {[%emt 0:00:21]} ({And not} 34... cxb4 35. Rxe5+ Kf6 36. Kf4 $11) 35. a5 {[%emt 0:00:01]} bxa5 {[%emt 0:00:15]} 36. Rxa5 {[%emt 0:00:01]} Kf5 {[%emt 0:04:11]} 37. Rb5 {[%emt 0:00:07]} h5 {[%emt 0:01:07]} 38. Rb8 {[%emt 0:00:24] [#]} h4+ $1 {[%emt 0:00:44][%mdl 512]} 39. Kf2 {[%emt 0:01:14]} h3 $2 {[%emt 0:02:29]} (39... Ra6 $19 40. Rf8+ Kg6 41. Rg8+ Kh7) 40. Rh8 $1 $11 {[%emt 0:00:23]} Rb6 {[%emt 0:02:52] Hoping for ...b3.} 41. Rxh3 {[%emt 0:31:26]} b3 {[%emt 0:30:06]} 42. Rh1 {[%emt 0:00:24]} b2 {[%emt 0:00:46]} 43. Rb1 {[%emt 0:00:54]} Kf4 {[%emt 0:00:07]} 44. Ke2 {[%emt 0:00:38]} Rb4 {[%emt 0:09:14]} 45. Kd2 {[%emt 0:00:00]} Kxf3 {[%emt 0:00:00]} 46. Rf1+ {[%emt 0:00:00]} Kg2 {[%emt 0:00:00]} 47. Rb1 {[%emt 0:00:00]} Kf2 {[%emt 0:00:00]} 48. Kc2 {[%emt 0:00:00]} Ke2 {[%emt 0:00:00]} 49. Kc3 $1 {[%emt 0:00:00]} Rb8 {[%emt 0:00:00]} 50. Kc2 $1 {[%emt 0:00:00]} Rb7 {[%emt 0:00:00]} 51. Kc3 $1 {[%emt 0:00:00]} Rb4 {[%emt 0:00:00]} 52. Kc2 {[%emt 0:00:00] [#]} e4 {[%emt 0:00:00]} 53. dxe4 {[%emt 0:00:00] The position is equal.} Rxc4+ {[%emt 0:00:00]} 54. Kxb2 {[%emt 0:00:00]} Kd2 {[%emt 0:00:00]} 55. Rh1 {[%emt 0:00:00]} Rb4+ {[%emt 0:00:00]} 56. Ka3 {[%emt 0:00:00]} Rxe4 {[%emt 0:00:00]} 57. Rh5 {[%emt 0:00:00]} c4 {[%emt 0:00:00]} 58. Kb4 {[%emt 0:00:00]} c3+ {[%emt 0:00:00]} 59. Kb3 {[%emt 0:00:00]} Re3 {[%emt 0:00:00] ( -> ...c2+)} (59... Re2 $5 {[%cal Rc3c2]} 60. Rd5+ Ke3 $11) 60. Rh2+ {[%emt 0:00:00]} Kd3 {[%emt 0:00:00]} 61. Rh8 {[%emt 0:00:00] And White is the lucky defender.   Weighted Error Value: White=0.26 (precise) /Black=0.11 (very precise)} 1/2-1/2

[Event "1st FIDE Olympiad DIS 2023"]
[Site "Belgrade"]
[Date "2023.02.02"]
[Round "4.15"]
[White "Campos, Eugenio"]
[Black "Bulatovic, Luka"]
[Result "1-0"]
[ECO "D46"]
[WhiteElo "2227"]
[BlackElo "1707"]
[Annotator "TA"]
[PlyCount "101"]
[EventDate "2023.01.30"]
[EventType "team-tourn"]
[EventCountry "SRB"]
[SourceTitle "playchess.com"]
[Source "ChessBase"]
[SourceQuality "1"]
[WhiteTeam "Angola"]
[BlackTeam "Serbia"]
[WhiteTeamCountry "ANG"]
[BlackTeamCountry "SRB"]
[TimeControl "40/5400+30:1800+30"]

{[%evp 15,101,17,31,38,38,38,38,37,71,0,96,91,96,10,23,0,0,-8,-19,-10,83,-113,-128,-112,-116,-134,0,0,0,-13,0,-12,368,364,583,585,574,585,579,587,586,587,581,563,568,572,572,558,616,562,688,406,828,822,818,800,760,718,2371,2308,1738,1718,3938,3751,2332,2093,4827,2772,29971,29974,29978,29967,29978,29975,5804,2427,1739,1658,29976,29977,29977,29978,29975,29978,29979,29980,29980,29981]} 1. d4 {[%emt 0:00:09]} d5 {[%emt 0:00:58]} 2. c4 {[%emt 0:00:10]} e6 {[%emt 0:00:49]} 3. Nc3 {[%emt 0:00:13]} Nf6 {[%emt 0:00:46]} 4. Nf3 {[%emt 0:00:08]} c6 {[%emt 0:01:02]} 5. e3 {[%emt 0:02:12]} Be7 {[%emt 0:06:05]} 6. Bd3 {[%emt 0:00:11]} Nbd7 {[%emt 0:01:38]} 7. O-O {[%emt 0:00:16]} O-O {[%emt 0:01:13]} 8. Qe2 {[%emt 0:00:24] 8.e4 is becoming the main line.} Re8 {[%emt 0:04:43]} 9. Rd1 {[%emt 0:00:39] D46: Semi-Slav: 5 e3 Nbd7 6 Bd3, Black avoids the Meran.} b6 {[%emt 0:03:13]} 10. e4 {[%emt 0:00:22]} dxe4 {[%emt 0:12:47]} 11. Nxe4 {[%emt 0:00:08] White is slightly better.} Bb7 12. Ne5 {[%emt 0:02:46] [#]} (12. Neg5 $1 $16 {[%cal Rg5f7]} h6 13. Bg6 (13. Ne4 c5 $11) 13... hxg5 14. Bxf7+ {[%mdl 64] Double Attack} Kf8 15. Nxg5 (15. Bxe8 Qxe8 16. Nxg5 Bd6 $16)) 12... Qc8 $146 (12... Nxe4 $1 $11 13. Bxe4 (13. Qxe4 f5 $11) 13... Nxe5 14. dxe5 Qc7) ({Predecessor:} 12... Nxe4 13. Qxe4 Nf6 14. Qf3 Qc8 15. Bg5 c5 16. Qg3 cxd4 17. Qh4 Qc7 18. Ng4 Ne4 19. Bxe4 Bxg5 20. Qxg5 Bxe4 21. Qh4 Bb7 22. Nf6+ {1-0 Hernandez Leon,A (2280)-Haertl,S (1911) Las Palmas Isla Bonita op 4th 2019 (4.4)}) 13. Ng5 $1 $16 {[%emt 0:02:19] Qf3 would be deadly.} Rf8 {[%emt 0:00:00]} 14. f4 {[%emt 0:07:51] White is much more active. The black rooks are badly placed.} ({Better is} 14. Re1 $16 {Hoping for Nexf7.} Qe8 15. Bd2) 14... h6 $11 {[%emt 0:08:34]} 15. Ngf3 {[%emt 0:02:00]} c5 {[%emt 0:01:01]} 16. d5 $132 {[%emt 0:10:03][%mdl 2112] Deflection. White has counterplay} exd5 {[%emt 0:07:24]} 17. Bf5 {[%emt 0:01:32]} Bd6 {[%emt 0:03:37] [#]} (17... Qd8 $11) 18. cxd5 $2 {[%emt 0:02:20] [#]} (18. Nxd7 $1 $16 {is necessary to keep the advantage.} Nxd7 19. Ne5 Bxe5 20. fxe5) 18... Qc7 $1 $17 {[%emt 0:01:36]} 19. b3 {[%emt 0:11:00]} Rfe8 {[%emt 0:02:58]} (19... Bxd5 $2 20. Nxd7 Nxd7 21. Rxd5 $18) 20. Bb2 {[%emt 0:01:13]} Re7 {[%emt 0:01:49]} (20... Nxd5 $17 21. Qc4 (21. Bxd7 $2 Qxd7 {[%mdl 64] Pin} 22. Qc4 Qe6 $19) 21... N7f6) 21. Qc4 {[%emt 0:02:01]} Rae8 {[%emt 0:03:19]} (21... b5 {looks sharper.} 22. Qxb5 Nb6 23. Nc4 Nxc4 24. Qxc4 Bxf4 25. Bxf6 gxf6 26. Bb1 Rae8) 22. Rd2 {[%emt 0:01:03] [#]} b5 $1 {[%emt 0:18:42][%mdl 64] Deflection} 23. Qxb5 {[%emt 0:01:42]} Bxd5 $2 {[%emt 0:00:54][%mdl 8192] Loses the game.} (23... Nb6 $11 {and Black stays safe.}) 24. Nxd7 $18 {[%emt 0:02:06]} (24. Bxd7 Rb8 $18) 24... Bxf3 $2 {[%emt 0:08:11]} (24... Nxd7 25. Rxd5 Nb6) 25. Nxf6+ {[%emt 0:00:44][%mdl 64] Discovered Attack} gxf6 {[%emt 0:00:00]} 26. gxf3 {[%emt 0:00:39] Black must now prevent Rg2+.} Bxf4 {[%emt 0:00:32]} 27. Rg2+ {[%emt 0:01:04]} Kf8 {[%emt 0:00:59]} 28. Bxf6 {[%emt 0:01:20] And now Bg7+ would win.} Bxh2+ {[%emt 0:03:09]} 29. Kf1 $1 {[%emt 0:02:57] Intending Bg7+ and mate.} (29. Rxh2 Re1+ 30. Rxe1 (30. Qf1 Rxf1+ 31. Rxf1 Qf4 $11) 30... Qg3+ 31. Rg2 Rxe1+ $14) 29... Bg3 {[%emt 0:01:33] ( -> ...Re1+)} 30. Bxe7+ {[%emt 0:01:25]} Rxe7 {[%emt 0:01:08]} 31. Rd1 {[%emt 0:08:11]} Qf4 {[%emt 0:02:04]} 32. Bg4 {[%emt 0:02:25]} (32. Qxc5 $2 Qxf3+) ({Stronger than} 32. Rd8+ Kg7 33. Rxg3+ (33. Qxc5 $2 Re1#) (33. Be4 $2 Qxf3+ 34. Kg1 Qe3+ 35. Kh1 Qe1+ 36. Rg1 Qxe4+ 37. Rg2 Qh4+ 38. Kg1 Re1+ $19 {[%mdl 64] Discovered Attack}) 33... Qxg3 $11) 32... h5 {[%emt 0:01:40]} 33. Qc4 {[%emt 0:05:26]} Qe5 {[%emt 0:01:46]} (33... hxg4 $142 34. Qxf4 (34. Qxc5 $2 {gets mated.} Qxf3+) 34... Bxf4 35. Rxg4 Bc7) 34. Re2 {[%emt 0:00:50]} Qxe2+ {[%emt 0:02:46]} 35. Qxe2 {[%emt 0:00:10]} Rxe2 {[%emt 0:00:19]} 36. Kxe2 {[%emt 0:00:17]} hxg4 {[%emt 0:00:32]} 37. fxg4 {[%emt 0:00:14][%mdl 4096] Endgame KR-KB} Ke7 {[%emt 0:00:34]} 38. Rd5 {[%emt 0:00:17]} Bd6 {[%emt 0:00:35]} 39. Kd3 {[%emt 0:00:13]} Ke6 {[%emt 0:00:30]} 40. Kc4 {[%emt 0:00:13]} f6 {[%emt 0:00:38]} 41. Rf5 {[%emt 0:30:18]} a6 {[%emt 0:00:29]} 42. a4 {[%emt 0:00:44][%cal Ba2a4,Ba4a5][%mdl 32]} Be7 {[%emt 0:00:39]} 43. Rd5 {[%emt 0:00:55]} Bd6 {[%emt 0:00:17]} 44. a5 {[%emt 0:01:58]} Be7 {[%emt 0:00:45]} 45. Rd1 {[%emt 0:00:42]} (45. Rh5 $142 Bd8 46. Rxc5) 45... Bd6 {[%emt 0:00:56]} 46. Re1+ {[%emt 0:00:25]} Kd7 {[%emt 0:01:10]} 47. Kd5 {[%emt 0:00:54] White mates.} Bc7 {[%emt 0:01:31]} 48. Re6 {[%emt 0:00:17]} Bxa5 {[%emt 0:00:34]} 49. Rxf6 {[%emt 0:00:06]} Ke7 {[%emt 0:00:22]} 50. Rxa6 {[%emt 0:00:21]} Bb4 {[%emt 0:00:22]} 51. Rc6 {[%emt 0:00:27] An entertaining game by Campos.   Weighted Error Value: White=0.42/Black=0.58} 1-0